[Event "Titled Tuesday Blitz May 30 Early 2023"]
[White "Kiseljova, Marya"]
[Black "Piesik, Piotr"]
[WhiteFideId "4155009"]
[BlackFideId "1136194"]
[WhiteElo "1831"]
[BlackElo "2299"]
[Result "0-1"]
[Round "07"]
[TimeControl "180+2"]
[Date "2023.05.30"]
[WhiteClock "0:00:59"]
[BlackClock "0:01:49"]

1. d4 {[%clk 0:03:00]}  c5 {[%clk 0:02:59]} 2. d5 {[%clk 0:03:00]}  e5 {[%clk 0:02:59]} 3. Nc3 {[%clk 0:02:59]}  d6 {[%clk 0:02:59]} 4. e4 {[%clk 0:02:57]}  Be7 {[%clk 0:03:00]} 5. Nf3 {[%clk 0:02:55]}  a6 {[%clk 0:03:00]} 6. a4 {[%clk 0:02:54]}  Bg4 {[%clk 0:03:00]} 7. Be2 {[%clk 0:02:54]}  Bxf3 {[%clk 0:02:59]} 8. Bxf3 {[%clk 0:02:54]}  Bg5 {[%clk 0:03:00]} 9. Bxg5 {[%clk 0:02:38]}  Qxg5 {[%clk 0:03:01]} 10. Qd2 {[%clk 0:02:38]}  Qxd2+ {[%clk 0:02:56]} 11. Kxd2 {[%clk 0:02:39]}  Ne7 {[%clk 0:02:55]} 12. Rab1 {[%clk 0:02:29]}  Nd7 {[%clk 0:02:51]} 13. b4 {[%clk 0:02:27]}  cxb4 {[%clk 0:02:51]} 14. Rxb4 {[%clk 0:02:26]}  Nc5 {[%clk 0:02:52]} 15. Rhb1 {[%clk 0:02:23]}  Rc8 {[%clk 0:02:30]} 16. Rb6 {[%clk 0:02:18]}  Rd8 {[%clk 0:02:25]} 17. Bg4 {[%clk 0:02:09]}  h5 {[%clk 0:02:24]} 18. Bh3 {[%clk 0:02:08]}  Rh6 {[%clk 0:02:20]} 19. f3 {[%clk 0:02:01]}  Ng6 {[%clk 0:02:12]} 20. g3 {[%clk 0:01:58]}  h4 {[%clk 0:02:11]} 21. Bf5 {[%clk 0:01:43]}  hxg3 {[%clk 0:02:11]} 22. hxg3 {[%clk 0:01:41]}  Rh2+ {[%clk 0:02:10]} 23. Ne2 {[%clk 0:01:41]}  Ne7 {[%clk 0:02:07]} 24. Bg4 {[%clk 0:01:38]}  g6 {[%clk 0:02:05]} 25. f4 {[%clk 0:01:20]}  Nxe4+ {[%clk 0:01:59]} 26. Ke3 {[%clk 0:01:20]}  f5 {[%clk 0:01:55]} 27. Rxb7 {[%clk 0:01:06]}  Nxd5+ {[%clk 0:01:52]} 28. Kf3 {[%clk 0:00:59]}  Nd2# {[%clk 0:01:49]} 0-1


[Site "https://www.chess.com"]

[Event "Titled Tuesday Blitz May 30 Early 2023"]
[White "Lakshmi C"]
[Black "Theytookourjobs"]
[WhiteFideId "25035347"]
[WhiteElo "1942"]
[BlackElo "2312"]
[Result "1-0"]
[Round "07"]
[TimeControl "180+2"]
[Date "2023.05.30"]
[WhiteClock "0:00:06"]
[BlackClock "0:00:22"]

1. e4 {[%clk 0:02:07]}  e6 {[%clk 0:03:00]} 2. d4 {[%clk 0:01:58]}  d5 {[%clk 0:03:00]} 3. e5 {[%clk 0:01:58]}  c5 {[%clk 0:03:00]} 4. c3 {[%clk 0:01:55]}  Nc6 {[%clk 0:03:00]} 5. f4 {[%clk 0:01:54]}  Qb6 {[%clk 0:02:56]} 6. Nf3 {[%clk 0:01:54]}  Nh6 {[%clk 0:02:47]} 7. Bd3 {[%clk 0:01:19]}  cxd4 {[%clk 0:02:09]} 8. cxd4 {[%clk 0:01:18]}  Bd7 {[%clk 0:02:09]} 9. Bc2 {[%clk 0:01:06]}  Nb4 {[%clk 0:01:58]} 10. Nc3 {[%clk 0:00:56]}  Nxc2+ {[%clk 0:01:57]} 11. Qxc2 {[%clk 0:00:56]}  Nf5 {[%clk 0:01:57]} 12. Qd3 {[%clk 0:00:53]}  Rc8 {[%clk 0:01:42]} 13. g4 {[%clk 0:00:34]}  Nh6 {[%clk 0:01:10]} 14. h3 {[%clk 0:00:34]}  Bb4 {[%clk 0:01:04]} 15. Bd2 {[%clk 0:00:33]}  Bxc3 {[%clk 0:00:52]} 16. Bxc3 {[%clk 0:00:32]}  Bb5 {[%clk 0:00:52]} 17. Qd2 {[%clk 0:00:31]}  Ng8 {[%clk 0:00:47]} 18. f5 {[%clk 0:00:25]}  Ne7 {[%clk 0:00:46]} 19. Qg5 {[%clk 0:00:24]}  g6 {[%clk 0:00:44]} 20. Qf6 {[%clk 0:00:19]}  Rf8 {[%clk 0:00:38]} 21. Bb4 {[%clk 0:00:16]}  Ng8 {[%clk 0:00:27]} 22. Qg7 {[%clk 0:00:14]}  Ne7 {[%clk 0:00:25]} 23. f6 {[%clk 0:00:13]}  Rg8 {[%clk 0:00:22]} 24. Qxh7 {[%clk 0:00:13]}  Kd7 {[%clk 0:00:21]} 25. fxe7 {[%clk 0:00:12]}  Bd3 {[%clk 0:00:20]} 26. Bc3 {[%clk 0:00:09]}  Rce8 {[%clk 0:00:18]} 27. Qxf7 {[%clk 0:00:08]}  Be4 {[%clk 0:00:19]} 28. Rf1 {[%clk 0:00:07]}  Rh8 {[%clk 0:00:18]} 29. Ng5 {[%clk 0:00:07]}  Rxe7 {[%clk 0:00:17]} 30. Qf6 {[%clk 0:00:07]}  Rhe8 {[%clk 0:00:16]} 31. Nxe4 {[%clk 0:00:07]}  dxe4 {[%clk 0:00:16]} 32. Qf4 {[%clk 0:00:08]}  Qc6 {[%clk 0:00:16]} 33. Qe3 {[%clk 0:00:08]}  Qd5 {[%clk 0:00:16]} 34. Rf4 {[%clk 0:00:08]}  Kc8 {[%clk 0:00:16]} 35. Qxe4 {[%clk 0:00:08]}  Qc4 {[%clk 0:00:17]} 36. Qe2 {[%clk 0:00:08]}  Qc6 {[%clk 0:00:16]} 37. Rc1 {[%clk 0:00:07]}  Qh1+ {[%clk 0:00:16]} 38. Kd2 {[%clk 0:00:07]}  Qxh3 {[%clk 0:00:15]} 39. Bb4+ {[%clk 0:00:06]}  Kb8 {[%clk 0:00:16]} 40. Bd6+ {[%clk 0:00:06]}  Ka8 {[%clk 0:00:16]} 41. Bxe7 {[%clk 0:00:06]}  Qh7 {[%clk 0:00:14]} 42. Rf8 {[%clk 0:00:05]}  Rxf8 {[%clk 0:00:14]} 43. Bxf8 {[%clk 0:00:05]}  Qd7 {[%clk 0:00:14]} 44. Qc4 {[%clk 0:00:04]}  a6 {[%clk 0:00:14]} 45. Qc8+ {[%clk 0:00:04]}  Qxc8 {[%clk 0:00:15]} 46. Rxc8+ {[%clk 0:00:04]}  Ka7 {[%clk 0:00:16]} 47. Bc5+ {[%clk 0:00:05]}  b6 {[%clk 0:00:17]} 48. Bd6 {[%clk 0:00:05]}  Kb7 {[%clk 0:00:18]} 49. Rc7+ {[%clk 0:00:05]}  Ka8 {[%clk 0:00:17]} 50. Re7 {[%clk 0:00:05]}  g5 {[%clk 0:00:18]} 51. Ba3 {[%clk 0:00:05]}  a5 {[%clk 0:00:18]} 52. Kd3 {[%clk 0:00:05]}  b5 {[%clk 0:00:18]} 53. d5 {[%clk 0:00:04]}  b4 {[%clk 0:00:18]} 54. Rh7 {[%clk 0:00:04]}  exd5 {[%clk 0:00:18]} 55. e6 {[%clk 0:00:04]}  Kb8 {[%clk 0:00:19]} 56. e7 {[%clk 0:00:04]}  Kc7 {[%clk 0:00:20]} 57. e8=Q+ {[%clk 0:00:04]}  Kd6 {[%clk 0:00:21]} 58. Qe7+ {[%clk 0:00:04]}  Kc6 {[%clk 0:00:21]} 59. Qc7+ {[%clk 0:00:05]}  Kb5 {[%clk 0:00:21]} 60. Qd7+ {[%clk 0:00:05]}  Kc5 {[%clk 0:00:21]} 61. Qe7+ {[%clk 0:00:05]}  Kb5 {[%clk 0:00:21]} 62. Qe8+ {[%clk 0:00:05]}  Kc5 {[%clk 0:00:21]} 63. Rc7+ {[%clk 0:00:05]}  Kb6 {[%clk 0:00:21]} 64. Qb8+ {[%clk 0:00:05]}  Ka6 {[%clk 0:00:22]} 65. Ra7# {[%clk 0:00:06]} 1-0


[Site "https://www.chess.com"]

[Event "Titled Tuesday Blitz May 30 Early 2023"]
[White "Duda, Jan-Krzysztof"]
[Black "Nepomniachtchi, Ian"]
[WhiteFideId "1170546"]
[BlackFideId "4168119"]
[WhiteElo "2790"]
[BlackElo "2781"]
[Result "0-1"]
[Round "08"]
[TimeControl "180+2"]
[Date "2023.05.30"]
[WhiteClock "0:01:03"]
[BlackClock "0:01:01"]

1. d4 {[%clk 0:03:00]}  Nf6 {[%clk 0:02:57]} 2. Bg5 {[%clk 0:03:01]}  d5 {[%clk 0:02:56]} 3. Bxf6 {[%clk 0:03:00]}  gxf6 {[%clk 0:02:56]} 4. c4 {[%clk 0:02:58]}  e5 {[%clk 0:02:55]} 5. e3 {[%clk 0:02:55]}  Nc6 {[%clk 0:02:51]} 6. cxd5 {[%clk 0:02:53]}  Qxd5 {[%clk 0:02:49]} 7. Nc3 {[%clk 0:02:54]}  Bb4 {[%clk 0:02:49]} 8. a3 {[%clk 0:02:54]}  Bxc3+ {[%clk 0:02:45]} 9. bxc3 {[%clk 0:02:55]}  Rg8 {[%clk 0:02:45]} 10. Nf3 {[%clk 0:02:52]}  Bg4 {[%clk 0:02:39]} 11. h3 {[%clk 0:02:52]}  Bxf3 {[%clk 0:02:34]} 12. gxf3 {[%clk 0:02:36]}  O-O-O {[%clk 0:02:33]} 13. Bd3 {[%clk 0:02:30]}  exd4 {[%clk 0:02:16]} 14. cxd4 {[%clk 0:02:28]}  f5 {[%clk 0:02:17]} 15. Rb1 {[%clk 0:02:18]}  Rge8 {[%clk 0:01:55]} 16. Rb5 {[%clk 0:01:48]}  Qxd4 {[%clk 0:01:54]} 17. Bxf5+ {[%clk 0:01:49]}  Kb8 {[%clk 0:01:54]} 18. Qb1 {[%clk 0:01:49]}  Rxe3+ {[%clk 0:01:23]} 19. Kf1 {[%clk 0:01:32]}  Rxf3 {[%clk 0:01:18]} 20. Rxb7+ {[%clk 0:01:29]}  Ka8 {[%clk 0:01:17]} 21. Rh2 {[%clk 0:01:15]}  Rxf5 {[%clk 0:01:13]} 22. Rxc7 {[%clk 0:01:12]}  Qc4+ {[%clk 0:01:09]} 23. Kg1 {[%clk 0:01:10]}  Rg5+ {[%clk 0:01:02]} 24. Rg2 {[%clk 0:01:10]}  Rxg2+ {[%clk 0:01:02]} 25. Kh1 {[%clk 0:01:03]}  Rb8 {[%clk 0:01:01]} 0-1


[Site "https://www.chess.com"]

[Event "Titled Tuesday Blitz May 30 Early 2023"]
[White "Lenderman, Aleksandr"]
[Black "Le, Tuan Minh"]
[WhiteFideId "2021285"]
[BlackFideId "12401153"]
[WhiteElo "2607"]
[BlackElo "2566"]
[Result "0-1"]
[Round "08"]
[TimeControl "180+2"]
[Date "2023.05.30"]
[WhiteClock "0:00:01"]
[BlackClock "0:00:06"]

1. Nf3 {[%clk 0:03:00]}  d5 {[%clk 0:02:55]} 2. e3 {[%clk 0:03:00]}  Nf6 {[%clk 0:02:55]} 3. c4 {[%clk 0:03:00]}  c6 {[%clk 0:02:54]} 4. Nc3 {[%clk 0:03:00]}  a6 {[%clk 0:02:53]} 5. Qc2 {[%clk 0:02:56]}  e6 {[%clk 0:02:49]} 6. b3 {[%clk 0:02:51]}  c5 {[%clk 0:02:49]} 7. cxd5 {[%clk 0:02:49]}  exd5 {[%clk 0:02:49]} 8. d4 {[%clk 0:02:50]}  Nc6 {[%clk 0:02:50]} 9. Be2 {[%clk 0:02:47]}  cxd4 {[%clk 0:02:48]} 10. Nxd4 {[%clk 0:02:48]}  Nxd4 {[%clk 0:02:48]} 11. exd4 {[%clk 0:02:49]}  h6 {[%clk 0:02:47]} 12. O-O {[%clk 0:02:49]}  Bd6 {[%clk 0:02:48]} 13. Bd3 {[%clk 0:02:44]}  O-O {[%clk 0:02:47]} 14. h3 {[%clk 0:02:44]}  Re8 {[%clk 0:02:47]} 15. Bd2 {[%clk 0:02:40]}  Bd7 {[%clk 0:02:38]} 16. Rae1 {[%clk 0:02:36]}  Qb6 {[%clk 0:02:36]} 17. Rxe8+ {[%clk 0:02:18]}  Rxe8 {[%clk 0:02:37]} 18. Be3 {[%clk 0:02:17]}  Bb8 {[%clk 0:02:22]} 19. Ne2 {[%clk 0:02:01]}  Ne4 {[%clk 0:02:22]} 20. Bxe4 {[%clk 0:01:52]}  Rxe4 {[%clk 0:02:18]} 21. Rc1 {[%clk 0:01:16]}  Qg6 {[%clk 0:02:16]} 22. Kf1 {[%clk 0:01:17]}  Bd6 {[%clk 0:01:41]} 23. Nc3 {[%clk 0:01:08]}  Re8 {[%clk 0:00:57]} 24. Qxg6 {[%clk 0:01:07]}  fxg6 {[%clk 0:00:58]} 25. Nxd5 {[%clk 0:01:06]}  g5 {[%clk 0:00:58]} 26. Nb6 {[%clk 0:00:59]}  Bf5 {[%clk 0:00:52]} 27. Nc4 {[%clk 0:00:57]}  Bf8 {[%clk 0:00:50]} 28. Ne5 {[%clk 0:00:54]}  Bd6 {[%clk 0:00:47]} 29. Nc4 {[%clk 0:00:55]}  Bf8 {[%clk 0:00:47]} 30. Kg1 {[%clk 0:00:53]}  Be4 {[%clk 0:00:42]} 31. Nd2 {[%clk 0:00:47]}  Bd5 {[%clk 0:00:42]} 32. Rc7 {[%clk 0:00:44]}  Re7 {[%clk 0:00:35]} 33. Rc8 {[%clk 0:00:40]}  Be6 {[%clk 0:00:29]} 34. Rb8 {[%clk 0:00:40]}  Rc7 {[%clk 0:00:26]} 35. Nc4 {[%clk 0:00:35]}  g6 {[%clk 0:00:17]} 36. Ne5 {[%clk 0:00:32]}  Kg7 {[%clk 0:00:18]} 37. h4 {[%clk 0:00:20]}  gxh4 {[%clk 0:00:16]} 38. Bxh6+ {[%clk 0:00:19]}  Kxh6 {[%clk 0:00:15]} 39. Rxf8 {[%clk 0:00:20]}  Rc1+ {[%clk 0:00:14]} 40. Kh2 {[%clk 0:00:21]}  Rc2 {[%clk 0:00:15]} 41. Rh8+ {[%clk 0:00:11]}  Kg7 {[%clk 0:00:13]} 42. Rxh4 {[%clk 0:00:11]}  Rxa2 {[%clk 0:00:13]} 43. Rf4 {[%clk 0:00:10]}  Bxb3 {[%clk 0:00:11]} 44. Rg4 {[%clk 0:00:11]}  Bc2 {[%clk 0:00:10]} 45. d5 {[%clk 0:00:11]}  Bf5 {[%clk 0:00:09]} 46. Rd4 {[%clk 0:00:11]}  Kf6 {[%clk 0:00:09]} 47. f4 {[%clk 0:00:11]}  g5 {[%clk 0:00:06]} 48. d6 {[%clk 0:00:11]}  gxf4 {[%clk 0:00:05]} 49. d7 {[%clk 0:00:12]}  Bxd7 {[%clk 0:00:06]} 50. Nxd7+ {[%clk 0:00:12]}  Kf5 {[%clk 0:00:06]} 51. Rd5+ {[%clk 0:00:11]}  Ke6 {[%clk 0:00:06]} 52. Rd3 {[%clk 0:00:09]}  Kf5 {[%clk 0:00:05]} 53. Nc5 {[%clk 0:00:09]}  b6 {[%clk 0:00:05]} 54. Rd5+ {[%clk 0:00:08]}  Kg4 {[%clk 0:00:04]} 55. Nd3 {[%clk 0:00:08]}  f3 {[%clk 0:00:05]} 56. Ne5+ {[%clk 0:00:08]}  Kf4 {[%clk 0:00:06]} 57. Nxf3 {[%clk 0:00:09]}  b5 {[%clk 0:00:06]} 58. Rd4+ {[%clk 0:00:08]}  Ke3 {[%clk 0:00:06]} 59. Rd6 {[%clk 0:00:08]}  b4 {[%clk 0:00:06]} 60. Rb6 {[%clk 0:00:09]}  a5 {[%clk 0:00:07]} 61. Kg3 {[%clk 0:00:09]}  Kd3 {[%clk 0:00:07]} 62. Ne5+ {[%clk 0:00:09]}  Kc3 {[%clk 0:00:07]} 63. Kf4 {[%clk 0:00:05]}  b3 {[%clk 0:00:07]} 64. Rc6+ {[%clk 0:00:05]}  Kb4 {[%clk 0:00:07]} 65. Nd3+ {[%clk 0:00:05]}  Kb5 {[%clk 0:00:08]} 66. Rc5+ {[%clk 0:00:05]}  Ka4 {[%clk 0:00:08]} 67. Rc4+ {[%clk 0:00:03]}  Ka3 {[%clk 0:00:08]} 68. Rc3 {[%clk 0:00:03]}  Rxg2 {[%clk 0:00:05]} 69. Ke3 {[%clk 0:00:03]}  a4 {[%clk 0:00:05]} 70. Rc4 {[%clk 0:00:03]}  Rh2 {[%clk 0:00:04]} 71. Rc5 {[%clk 0:00:01]}  Ka2 {[%clk 0:00:03]} 72. Ra5 {[%clk 0:00:01]}  a3 {[%clk 0:00:03]} 73. Nc1+ {[%clk 0:00:02]}  Kb2 {[%clk 0:00:04]} 74. Nxb3 {[%clk 0:00:02]}  Rh3+ {[%clk 0:00:04]} 75. Kd4 {[%clk 0:00:01]}  Rxb3 {[%clk 0:00:04]} 76. Rh5 {[%clk 0:00:01]}  a2 {[%clk 0:00:05]} 77. Rh2+ {[%clk 0:00:01]}  Ka3 {[%clk 0:00:06]} 78. Rh1 {[%clk 0:00:01]}  Rb1 {[%clk 0:00:06]} 0-1


[Site "https://www.chess.com"]

[Event "Titled Tuesday Blitz May 30 Early 2023"]
[White "Dubov, Daniil"]
[Black "Babazada, Khazar"]
[WhiteFideId "24126055"]
[BlackFideId "13413554"]
[WhiteElo "2793"]
[BlackElo "2351"]
[Result "1-0"]
[Round "08"]
[TimeControl "180+2"]
[Date "2023.05.30"]
[WhiteClock "0:00:04"]
[BlackClock "0:00:00"]

1. c4 {[%clk 0:02:59]}  e5 {[%clk 0:02:59]} 2. g3 {[%clk 0:02:59]}  Nc6 {[%clk 0:02:59]} 3. Bg2 {[%clk 0:02:59]}  Nf6 {[%clk 0:02:58]} 4. Nf3 {[%clk 0:02:58]}  e4 {[%clk 0:02:41]} 5. Ng5 {[%clk 0:02:58]}  d5 {[%clk 0:02:41]} 6. cxd5 {[%clk 0:02:34]}  Qxd5 {[%clk 0:02:41]} 7. d3 {[%clk 0:02:33]}  Bb4+ {[%clk 0:02:37]} 8. Nc3 {[%clk 0:02:32]}  Qa5 {[%clk 0:01:42]} 9. O-O {[%clk 0:02:21]}  exd3 {[%clk 0:01:30]} 10. Qxd3 {[%clk 0:02:15]}  Bxc3 {[%clk 0:01:20]} 11. Qxc3 {[%clk 0:02:05]}  Qxc3 {[%clk 0:01:14]} 12. bxc3 {[%clk 0:02:05]}  h6 {[%clk 0:01:10]} 13. Nf3 {[%clk 0:01:50]}  O-O {[%clk 0:01:04]} 14. Nd4 {[%clk 0:01:45]}  Nxd4 {[%clk 0:00:56]} 15. cxd4 {[%clk 0:01:45]}  Re8 {[%clk 0:00:56]} 16. e3 {[%clk 0:01:31]}  Ne4 {[%clk 0:00:52]} 17. Ba3 {[%clk 0:01:18]}  Bd7 {[%clk 0:00:48]} 18. Rfc1 {[%clk 0:01:16]}  Bc6 {[%clk 0:00:42]} 19. f3 {[%clk 0:01:13]}  Nd6 {[%clk 0:00:40]} 20. e4 {[%clk 0:01:13]}  Rac8 {[%clk 0:00:23]} 21. Rab1 {[%clk 0:00:48]}  f5 {[%clk 0:00:14]} 22. Bh3 {[%clk 0:00:29]}  fxe4 {[%clk 0:00:07]} 23. Bxc8 {[%clk 0:00:28]}  Nxc8 {[%clk 0:00:07]} 24. fxe4 {[%clk 0:00:22]}  Bxe4 {[%clk 0:00:08]} 25. Re1 {[%clk 0:00:19]}  Nb6 {[%clk 0:00:06]} 26. Bc5 {[%clk 0:00:16]}  Nc4 {[%clk 0:00:04]} 27. Rxb7 {[%clk 0:00:12]}  Nd2 {[%clk 0:00:04]} 28. Re3 {[%clk 0:00:05]}  Re6 {[%clk 0:00:01]} 29. Rb8+ {[%clk 0:00:05]}  Kh7 {[%clk 0:00:02]} 30. Rf8 {[%clk 0:00:05]}  Ra6 {[%clk 0:00:01]} 31. Rf2 {[%clk 0:00:05]}  Nc4 {[%clk 0:00:00]} 32. Rxe4 {[%clk 0:00:04]} 1-0


[Site "https://www.chess.com"]

[Event "Titled Tuesday Blitz May 30 Early 2023"]
[White "Narayanan, Srinath"]
[Black "Martinez Alcantara, Jose Eduardo"]
[WhiteFideId "5018420"]
[BlackFideId "3805662"]
[WhiteElo "2438"]
[BlackElo "2711"]
[Result "0-1"]
[Round "08"]
[TimeControl "180+2"]
[Date "2023.05.30"]
[WhiteClock "0:00:01"]
[BlackClock "0:00:14"]

1. Nf3 {[%clk 0:03:00]}  c5 {[%clk 0:03:00]} 2. e3 {[%clk 0:02:58]}  Nf6 {[%clk 0:03:00]} 3. b3 {[%clk 0:02:59]}  g6 {[%clk 0:03:00]} 4. Bb2 {[%clk 0:02:59]}  Bg7 {[%clk 0:03:01]} 5. c4 {[%clk 0:03:00]}  O-O {[%clk 0:03:01]} 6. Nc3 {[%clk 0:02:58]}  b6 {[%clk 0:03:01]} 7. d4 {[%clk 0:02:58]}  cxd4 {[%clk 0:03:01]} 8. Nxd4 {[%clk 0:02:55]}  Bb7 {[%clk 0:03:01]} 9. Nf3 {[%clk 0:02:53]}  d6 {[%clk 0:03:01]} 10. Be2 {[%clk 0:02:52]}  Nbd7 {[%clk 0:03:01]} 11. O-O {[%clk 0:02:52]}  Qc7 {[%clk 0:03:02]} 12. Rc1 {[%clk 0:02:52]}  Rac8 {[%clk 0:03:00]} 13. Nd4 {[%clk 0:02:44]}  a6 {[%clk 0:02:58]} 14. Bf3 {[%clk 0:02:44]}  e6 {[%clk 0:02:58]} 15. Bxb7 {[%clk 0:02:42]}  Qxb7 {[%clk 0:02:59]} 16. Qe2 {[%clk 0:02:43]}  Nc5 {[%clk 0:02:58]} 17. Rfd1 {[%clk 0:02:43]}  Rfd8 {[%clk 0:02:58]} 18. h3 {[%clk 0:02:44]}  Rd7 {[%clk 0:02:49]} 19. Nf3 {[%clk 0:02:43]}  Rcd8 {[%clk 0:02:41]} 20. Rc2 {[%clk 0:02:43]}  Qc7 {[%clk 0:02:30]} 21. b4 {[%clk 0:02:29]}  Nce4 {[%clk 0:02:25]} 22. Nxe4 {[%clk 0:02:30]}  Nxe4 {[%clk 0:02:26]} 23. Bxg7 {[%clk 0:02:31]}  Kxg7 {[%clk 0:02:27]} 24. Qd3 {[%clk 0:02:31]}  Nf6 {[%clk 0:02:26]} 25. Rdc1 {[%clk 0:02:27]}  Qb7 {[%clk 0:02:22]} 26. Qc3 {[%clk 0:02:24]}  Rc8 {[%clk 0:02:19]} 27. Nd2 {[%clk 0:02:18]}  e5 {[%clk 0:02:11]} 28. Qb2 {[%clk 0:02:18]}  Rdc7 {[%clk 0:02:03]} 29. Nb3 {[%clk 0:02:17]}  Qe4 {[%clk 0:02:00]} 30. Nd2 {[%clk 0:01:50]}  Qd3 {[%clk 0:01:56]} 31. Rc3 {[%clk 0:01:38]}  Qf5 {[%clk 0:01:56]} 32. Qa3 {[%clk 0:01:32]}  Ra8 {[%clk 0:01:39]} 33. b5 {[%clk 0:01:31]}  Qe6 {[%clk 0:01:39]} 34. Rd3 {[%clk 0:01:20]}  Qc8 {[%clk 0:00:55]} 35. Rxd6 {[%clk 0:01:12]}  axb5 {[%clk 0:00:55]} 36. Qb2 {[%clk 0:01:12]}  bxc4 {[%clk 0:00:55]} 37. Qxe5 {[%clk 0:01:10]}  Qf5 {[%clk 0:00:55]} 38. Qd4 {[%clk 0:00:49]}  Rd7 {[%clk 0:00:45]} 39. Nxc4 {[%clk 0:00:36]}  Rxa2 {[%clk 0:00:44]} 40. e4 {[%clk 0:00:22]}  Qf4 {[%clk 0:00:37]} 41. Rf1 {[%clk 0:00:11]}  Rxd6 {[%clk 0:00:26]} 42. Nxd6 {[%clk 0:00:12]}  Kg8 {[%clk 0:00:26]} 43. Qxb6 {[%clk 0:00:10]}  Ra8 {[%clk 0:00:20]} 44. Qb7 {[%clk 0:00:04]}  Rf8 {[%clk 0:00:20]} 45. Qe7 {[%clk 0:00:05]}  Nh5 {[%clk 0:00:16]} 46. e5 {[%clk 0:00:05]}  Ng7 {[%clk 0:00:14]} 47. Ne8 {[%clk 0:00:01]}  Rxe8 {[%clk 0:00:14]} 0-1


[Site "https://www.chess.com"]

[Event "Titled Tuesday Blitz May 30 Early 2023"]
[White "Bluebaum, Matthias"]
[Black "Durarbayli, Vasif"]
[WhiteFideId "24651516"]
[BlackFideId "13402935"]
[WhiteElo "2639"]
[BlackElo "2551"]
[Result "1/2-1/2"]
[Round "08"]
[TimeControl "180+2"]
[Date "2023.05.30"]
[WhiteClock "0:00:08"]
[BlackClock "0:00:04"]

1. d4 {[%clk 0:03:00]}  Nf6 {[%clk 0:02:59]} 2. c4 {[%clk 0:03:00]}  e6 {[%clk 0:03:00]} 3. Nc3 {[%clk 0:03:01]}  Bb4 {[%clk 0:02:59]} 4. e3 {[%clk 0:03:01]}  O-O {[%clk 0:02:59]} 5. Bd2 {[%clk 0:03:02]}  Re8 {[%clk 0:02:59]} 6. Nf3 {[%clk 0:03:02]}  d6 {[%clk 0:02:57]} 7. Qc2 {[%clk 0:02:57]}  e5 {[%clk 0:02:55]} 8. a3 {[%clk 0:02:57]}  Bxc3 {[%clk 0:02:53]} 9. Bxc3 {[%clk 0:02:58]}  e4 {[%clk 0:02:52]} 10. Nd2 {[%clk 0:02:58]}  c6 {[%clk 0:02:43]} 11. Be2 {[%clk 0:02:50]}  d5 {[%clk 0:02:38]} 12. h3 {[%clk 0:02:51]}  Bf5 {[%clk 0:02:36]} 13. Rc1 {[%clk 0:02:44]}  Nbd7 {[%clk 0:02:31]} 14. g4 {[%clk 0:02:45]}  Bg6 {[%clk 0:02:31]} 15. h4 {[%clk 0:02:45]}  h6 {[%clk 0:02:31]} 16. Bb4 {[%clk 0:02:39]}  Nb6 {[%clk 0:02:20]} 17. b3 {[%clk 0:02:38]}  Qd7 {[%clk 0:02:16]} 18. Rg1 {[%clk 0:02:32]}  h5 {[%clk 0:02:14]} 19. gxh5 {[%clk 0:02:28]}  Bxh5 {[%clk 0:02:06]} 20. Bxh5 {[%clk 0:02:27]}  Nxh5 {[%clk 0:02:07]} 21. Qd1 {[%clk 0:02:28]}  Nf6 {[%clk 0:02:07]} 22. a4 {[%clk 0:02:21]}  Qh3 {[%clk 0:02:03]} 23. Nf1 {[%clk 0:02:12]}  Re6 {[%clk 0:01:52]} 24. Ng3 {[%clk 0:02:04]}  Kh7 {[%clk 0:01:39]} 25. Nh5 {[%clk 0:01:56]}  Nxh5 {[%clk 0:01:27]} 26. Qxh5+ {[%clk 0:01:57]}  Kg8 {[%clk 0:01:27]} 27. a5 {[%clk 0:01:57]}  Nd7 {[%clk 0:01:08]} 28. cxd5 {[%clk 0:01:57]}  cxd5 {[%clk 0:01:02]} 29. Qxd5 {[%clk 0:01:54]}  Qh2 {[%clk 0:00:26]} 30. Ke2 {[%clk 0:01:41]}  Nf8 {[%clk 0:00:27]} 31. Rg4 {[%clk 0:01:25]}  Rf6 {[%clk 0:00:24]} 32. Rf1 {[%clk 0:01:25]}  Re8 {[%clk 0:00:19]} 33. Bxf8 {[%clk 0:01:16]}  Kxf8 {[%clk 0:00:17]} 34. Rxe4 {[%clk 0:01:14]}  Rxe4 {[%clk 0:00:09]} 35. Qxe4 {[%clk 0:01:15]}  Qc7 {[%clk 0:00:10]} 36. f4 {[%clk 0:01:02]}  Qxa5 {[%clk 0:00:08]} 37. Rc1 {[%clk 0:01:03]}  Qa2+ {[%clk 0:00:05]} 38. Kf3 {[%clk 0:01:02]}  g6 {[%clk 0:00:05]} 39. Qe5 {[%clk 0:00:59]}  Rc6 {[%clk 0:00:02]} 40. Rxc6 {[%clk 0:00:32]}  bxc6 {[%clk 0:00:03]} 41. Qd6+ {[%clk 0:00:33]}  Kg7 {[%clk 0:00:04]} 42. Qxc6 {[%clk 0:00:33]}  Qxb3 {[%clk 0:00:04]} 43. d5 {[%clk 0:00:34]}  Qd1+ {[%clk 0:00:04]} 44. Ke4 {[%clk 0:00:34]}  a5 {[%clk 0:00:05]} 45. Qc3+ {[%clk 0:00:32]}  f6 {[%clk 0:00:01]} 46. Qxa5 {[%clk 0:00:29]}  f5+ {[%clk 0:00:01]} 47. Ke5 {[%clk 0:00:29]}  Qd3 {[%clk 0:00:02]} 48. Qa7+ {[%clk 0:00:27]}  Kh6 {[%clk 0:00:02]} 49. Qd4 {[%clk 0:00:27]}  Qb5 {[%clk 0:00:03]} 50. Kf6 {[%clk 0:00:20]}  Qd7 {[%clk 0:00:01]} 51. Qc5 {[%clk 0:00:18]}  Qg7+ {[%clk 0:00:01]} 52. Ke6 {[%clk 0:00:19]}  Qg8+ {[%clk 0:00:01]} 53. Kd7 {[%clk 0:00:19]}  Qf7+ {[%clk 0:00:01]} 54. Kc8 {[%clk 0:00:18]}  Qe8+ {[%clk 0:00:02]} 55. Kc7 {[%clk 0:00:19]}  Qf7+ {[%clk 0:00:02]} 56. Kb6 {[%clk 0:00:19]}  Qe8 {[%clk 0:00:02]} 57. d6 {[%clk 0:00:17]}  Kh5 {[%clk 0:00:03]} 58. Qe5 {[%clk 0:00:16]}  Qb8+ {[%clk 0:00:03]} 59. Kc5 {[%clk 0:00:17]}  Qc8+ {[%clk 0:00:03]} 60. Kd4 {[%clk 0:00:17]}  Qc6 {[%clk 0:00:02]} 61. Qd5 {[%clk 0:00:16]}  Qa4+ {[%clk 0:00:02]} 62. Ke5 {[%clk 0:00:16]}  Qe8+ {[%clk 0:00:03]} 63. Kf6 {[%clk 0:00:15]}  Qf8+ {[%clk 0:00:03]} 64. Ke5 {[%clk 0:00:14]}  Qg7+ {[%clk 0:00:02]} 65. Ke6 {[%clk 0:00:13]}  Qg8+ {[%clk 0:00:03]} 66. Ke5 {[%clk 0:00:13]}  Qg7+ {[%clk 0:00:03]} 67. Ke6 {[%clk 0:00:12]}  Qg8+ {[%clk 0:00:04]} 68. Ke5 {[%clk 0:00:08]}  Qg7+ {[%clk 0:00:04]} 1/2-1/2


[Site "https://www.chess.com"]